bitfinex-derivatives/quotes_ETHF0:USTF0_20250428
["timestamp","ask_amount","ask_price","bid_price","bid_amount"]
[1745860148735,1.13371,1763.5,1763.4,4.095]
[1745860148938,2.77361,1763.5,1763.4,4.095]
[1745860149145,1.6399,1763.5,1763.2,0.8272]
[1745860149437,1.13383,1763.3,1763.2,1.96109]
[1745860149639,1.13383,1763.3,1763.2,3.69319]
[1745860149933,2.81713,1763.3,1763.2,3.69319]
[1745860150637,2.83395,1763.8,1763.2,3.69319]
[1745860150638,3.2078,1763.6,1763.3,1.13383]
[1745860150950,1.13356,1763.8,1763.7,1.13356]
[1745860151345,1.13358,1763.7,1763.6,2.5917]
[1745860151739,1.13364,1763.6,1763.5,1.13371]
[1745860151944,1.13364,1763.6,1763.5,1.98831]
[1745860152446,2.81693,1763.7,1763.6,1.13364]
[1745860153738,13.57135453,1763.7,1763.1,3.2078]
[1745860153947,1.13389,1763.3,1763.2,1.13388]
[1745860154244,1.13389,1763.3,1763.2,41.93388]
[1745860154548,1.13383,1763.3,1763.2,41.93385]
[1745860158650,0.8234,1763.4,1763.3,1.13383]
[1745860158949,1.95717,1763.4,1763.3,4.34163]
[1745860159754,1.95717,1763.4,1763.3,1.13383]
[1745860160545,1.13383,1763.3,1763.2,42.73448]
[1745860160743,1.1339,1763.2,1763.1,4.094]
[1745860160945,1.1339,1763.2,1763.1,5.22796]
[1745860162046,1.1339,1763.2,1763.1,4.094]
[1745860162238,2.8545,1763.2,1763.1,5.22796]
[1745860162444,2.8545,1763.2,1763.1,4.094]
[1745860165051,6.0623,1763.2,1763.1,4.094]
[1745860165249,9.8643,1763.2,1763.1,4.094]
[1745860165653,9.8643,1763.2,1763.0,40.8]
[1745860165654,1.13396,1763.1,1763.0,40.8]
[1745860165852,1.13396,1763.1,1762.9,3.2078]
[1745860165853,1.13403,1763.0,1762.9,3.2078]
[1745860166251,2.85843,1763.0,1762.9,45.14189]
[1745860166743,2.85843,1763.0,1762.9,4.34189]
[1745860166946,2.85843,1763.0,1762.9,4.9084]
[1745860167143,1.7244,1763.0,1762.7,0.8723]
[1745860167452,1.13416,1762.8,1762.7,6.6619]
[1745860167856,1.98996,1762.8,1762.7,6.6619]
[1745860168055,3.71436,1762.8,1762.7,7.79612]
[1745860171443,0.8558,1762.8,1762.7,7.79612]
[1745860171647,1.98996,1762.8,1762.7,7.79612]
[1745860173449,1.13416,1762.8,1762.7,7.79612]
[1745860174359,2.83492,1763.1,1762.7,6.6619]
[1745860174557,1.134,1763.1,1763.0,1.13396]
[1745860174750,4.34175,1763.2,1763.1,1.13396]
[1745860174958,1.13388,1763.3,1763.2,1.13383]
[1745860175554,1.13383,1763.4,1763.3,1.13383]
[1745860175950,1.13383,1763.3,1763.2,2.73614]
[1745860176557,1.13383,1763.3,1763.2,1.6023]
[1745860176859,1.13383,1763.3,1763.2,2.7362]
[1745860177057,1.13383,1763.3,1763.2,1.6023]
[1745860177258,1.13383,1763.3,1763.2,2.7362]
[1745860177851,1.13383,1763.3,1763.2,1.6023]
[1745860178047,3.63883,1763.3,1763.2,1.6023]
[1745860178259,7.44083,1763.3,1763.2,1.6023]
[1745860179863,7.44083,1763.3,1763.2,2.7362]
[1745860180054,7.44083,1763.3,1763.2,1.6023]
[1745860180959,1.1339,1763.2,1763.1,0.8549]
[1745860181160,2.7787,1763.2,1763.1,0.8549]
[1745860182763,2.7787,1763.2,1763.1,1.98886]
[1745860183060,2.7787,1763.2,1763.1,3.71186]
[1745860184358,2.7787,1763.2,1763.1,2.5779]
[1745860184555,2.7787,1763.2,1763.1,3.71186]
[1745860184756,7.68749,1763.2,1762.8,3.2078]
[1745860184957,1.13403,1763.0,1762.9,2.493]
[1745860185460,1.13416,1762.8,1762.7,1.93187]
[1745860185668,1.13416,1762.8,1762.7,4.42487]
[1745860186263,1.13416,1762.8,1762.7,4.50227963]
[1745860192066,1.13416,1762.8,1762.7,2.57040963]
[1745860192269,1.13416,1762.8,1762.7,3.70462963]
[1745860192465,1.13416,1762.8,1762.7,3.78203926]
[1745860194077,1.13416,1762.8,1762.7,2.64781926]
[1745860194571,1.13416,1762.8,1762.7,3.78198926]
[1745860196870,1.13416,1762.8,1762.7,2.64781926]
[1745860199876,6.02736,1762.8,1762.7,0.23222889]
[1745860200173,10.64766,1762.8,1762.7,0.23222889]
[1745860201473,1.13448,1762.3,1762.2,63.647]
[1745860201672,1.13448,1762.3,1762.2,2.5648]
[1745860202063,2.78778,1762.3,1762.2,2.5648]
[1745860202275,2.78778,1762.3,1761.7,8.42766]
[1745860202276,1.1348,1761.8,1761.7,8.42766]
[1745860202576,1.1348,1761.8,1761.7,4.085]
[1745860202781,1.13479,1761.9,1761.7,7.2928]
[1745860202971,1.13479,1761.9,1761.8,1.13479]
[1745860203171,1.1348,1761.8,1761.7,7.2928]
[1745860203369,1.1348,1761.8,1761.7,4.085]
[1745860203573,1.1348,1761.8,1761.7,6.6171]
[1745860203970,1.1348,1761.8,1761.1,1.13522]
[1745860203971,2.83717,1761.7,1761.1,1.13522]
[1745860204278,1.13518,1761.3,1761.2,4.9026]
[1745860205179,4.05397453,1761.7,1761.4,1.13502]
[1745860205380,3.2078,1761.8,1761.5,1.13496]
[1745860205577,1.1349,1761.7,1761.6,0.8166]
[1745860206177,1.13486,1761.7,1761.6,1.95147]
[1745860206370,1.13486,1761.7,1761.6,0.8166]
[1745860208875,2.83136,1761.7,1761.6,0.8166]
[1745860209180,6.63336,1761.7,1761.6,0.8166]
[1745860209783,1.13493,1761.6,1761.5,4.086]
[1745860209974,2.83143,1761.6,1761.5,4.086]
[1745860210377,1.13493,1761.6,1761.5,4.086]
[1745860211583,1.13499,1761.5,1761.4,2.01314]
[1745860212079,1.13499,1761.5,1761.4,0.8781]
[1745860212885,2.75119,1761.5,1761.4,0.8781]
[1745860213087,1.13512,1761.3,1761.2,4.087]
[1745860213879,1.13512,1761.3,1761.2,5.22219]
[1745860214087,1.13512,1761.3,1761.2,4.087]
[1745860214581,1.13538,1760.9,1760.8,4.087]
[1745860214779,1.13538,1760.9,1760.8,4.947]
[1745860217487,1.13538,1760.9,1760.8,6.5668]
[1745860219584,1.13538,1760.9,1760.8,7.70224]
[1745860220185,6.12257622,1761.3,1760.8,7.70224]
[1745860220186,3.2078,1761.3,1760.8,14.40528]
[1745860220389,1.13529,1761.1,1761.0,1.13527]
[1745860220685,1.13529,1761.1,1761.0,2.82407]
[1745860221183,2.83743,1761.6,1761.2,1.13519]
[1745860221388,1.13509,1761.4,1761.3,1.96028]
[1745860221885,1.13509,1761.4,1761.3,0.8252]
[1745860222085,1.13509,1761.4,1761.3,1.96032]
[1745860223491,1.13509,1761.4,1761.3,0.8252]
[1745860223687,1.13509,1761.4,1761.3,1.96032]
[1745860225786,1.13509,1761.4,1761.3,0.8252]
[1745860225989,1.13509,1761.4,1761.3,1.96032]
[1745860228393,1.13509,1761.4,1761.3,0.8252]
[1745860231191,1.13509,1761.4,1761.1,4.9543]
[1745860231192,1.13519,1761.2,1761.1,4.9543]
[1745860231394,1.13519,1761.2,1761.1,6.92225]
[1745860231590,1.13519,1761.2,1761.1,4.9157]
[1745860231797,1.13519,1761.2,1761.1,6.05095]
[1745860232699,1.13519,1761.2,1761.1,4.9157]
[1745860233895,5.67608,1761.2,1760.9,3.2078]
[1745860234093,1.13532,1761.0,1760.9,5.17768]
[1745860234301,1.13532,1761.0,1760.9,4.0423]
[1745860235300,1.13532,1761.0,1760.9,5.17768]
[1745860237002,1.13532,1761.0,1760.9,3.64098]
[1745860237800,1.13532,1761.0,1760.9,2.5056]
[1745860238796,1.13532,1761.0,1760.9,3.64098]
[1745860239098,1.13532,1761.0,1760.9,2.5056]
[1745860239701,1.13532,1761.0,1760.9,3.64098]
[1745860240501,1.13532,1761.0,1760.9,2.5056]
[1745860243006,1.94562,1761.0,1760.9,2.5056]
[1745860243304,1.13538,1760.9,1760.8,4.083]
[1745860243492,2.76538,1760.9,1760.8,5.7666]
[1745860243697,2.76538,1760.9,1760.8,1.6836]
[1745860243899,1.13544,1760.8,1760.7,0.8658]
[1745860244101,4.8378,1760.8,1759.7,5.848]
[1745860244399,1.13603,1759.9,1759.8,0.8658]
[1745860244699,1.13603,1759.9,1759.8,1.7572]
[1745860245101,4.47404,1759.9,1759.5,11.62829568]
[1745860245304,1.13622,1759.6,1759.5,11.62829568]
[1745860245699,1.13622,1759.6,1759.5,4.084]
[1745860245900,4.47404,1759.9,1759.5,5.22028]
[1745860246099,1.13622,1759.6,1759.5,9.02228]
[1745860246301,1.6339,1759.9,1759.6,1.13622]
[1745860246507,1.13609,1759.8,1759.7,0.8321]
[1745860246906,1.13622,1759.6,1759.5,8.7052]
[1745860247103,1.13622,1759.6,1759.5,4.9032]
[1745860248404,3.2078,1759.8,1759.6,1.1362]
[1745860248702,1.13613,1759.8,1759.6,1.1362]
[1745860248907,1.13609,1759.8,1759.6,4.34397]
[1745860249505,1.13607,1759.9,1759.7,1.13615]
[1745860249711,1.13609,1759.8,1759.7,1.13615]
[1745860250004,1.13609,1759.8,1759.6,1.13616]
[1745860250205,1.1362,1759.7,1759.5,9.84145]
[1745860250608,1.1362,1759.7,1759.6,1.13622]
[1745860250909,1.13613,1759.8,1759.6,1.13622]
[1745860251210,1.13615,1759.7,1759.6,4.34402]
[1745860251611,1.13615,1759.7,1759.6,3.2078]
[1745860252210,1.13615,1759.7,1759.6,4.34402]
[1745860252612,7.6699,1760.0,1759.6,4.34402]
[1745860252613,1.13612,1759.8,1759.7,1.13614]
[1745860252909,1.13615,1759.7,1759.6,4.34396]
[1745860254514,1.13615,1759.7,1759.6,3.2078]
[1745860255513,1.6677,1759.8,1759.6,3.2078]
[1745860255514,1.13614,1759.8,1759.6,3.2078]
[1745860255715,1.13614,1759.8,1759.7,1.13613]
[1745860256918,1.13615,1759.7,1759.6,5.19937]
[1745860257122,1.13615,1759.7,1759.6,6.93327]
[1745860257319,1.13615,1759.7,1759.6,3.72547]
[1745860257618,1.13615,1759.7,1759.6,1.7339]
[1745860258014,2.78165,1759.7,1759.6,1.7339]
[1745860259319,2.78165,1759.7,1759.6,2.87012]
[1745860259526,2.78165,1759.7,1759.6,1.7339]
[1745860261525,3.58955,1759.7,1759.6,1.7339]
[1745860261921,1.13622,1759.6,1759.5,4.084]
[1745860262223,1.13622,1759.6,1759.4,4.0399]
[1745860262224,1.6534,1759.6,1759.4,4.0399]
[1745860262433,1.13628,1759.5,1759.4,5.7264]
[1745860263425,1.13628,1759.5,1759.4,2.5186]
[1745860263630,1.13628,1759.5,1759.4,1.6865]
[1745860263827,2.90158,1759.5,1759.4,1.6865]
[1745860264129,1.13641,1759.3,1759.2,47.77766]
[1745860264325,1.1364,1759.4,1759.3,1.13639]
[1745860265632,1.7653,1759.5,1759.2,4.081]
[1745860265826,1.13641,1759.4,1759.3,1.13639]
[1745860266127,1.13641,1759.3,1759.2,5.21743]
[1745860267226,1.1364,1759.4,1759.3,1.13635]
[1745860267535,1.13636,1759.5,1759.4,1.13631]
[1745860268229,1.13636,1759.5,1759.4,4.93831]
[1745860269226,1.13636,1759.5,1759.4,4.93835]
[1745860269431,1.13636,1759.5,1759.4,3.802]
[1745860270131,3.2078,1759.6,1759.3,1.13641]
[1745860270132,1.13635,1759.4,1759.3,1.13641]
[1745860271129,1.13641,1759.3,1759.2,5.21743]
[1745860271330,1.13641,1759.3,1759.2,4.081]
[1745860271920,3.58991,1759.3,1759.2,4.081]
[1745860274337,1.13667,1758.9,1758.8,4.082]
[1745860275033,1.13665,1759.0,1758.9,1.13667]
[1745860275231,1.13665,1759.0,1758.9,1.97817]
[1745860276131,1.13665,1759.0,1758.9,4.6435]
[1745860276527,4.34445,1759.0,1758.9,3.802]
[1745860277126,1.13667,1758.9,1758.8,4.082]
[1745860277521,1.13667,1758.9,1758.8,5.21874]
[1745860278023,1.13667,1758.9,1758.8,4.082]
[1745860278230,1.13667,1758.9,1758.8,3.802]
[1745860279124,1.13674,1758.8,1758.7,4.9084]
[1745860279326,1.13704,1758.4,1758.3,1.13706]
[1745860279531,1.13704,1758.4,1758.3,0.8547]
[1745860279930,1.13704,1758.4,1758.3,1.99176]
[1745860280135,1.13697,1758.5,1758.4,1.13697]
[1745860280337,1.13692,1758.6,1758.5,1.1369]
[1745860280732,1.13692,1758.6,1758.5,2.0007]
[1745860281134,1.13692,1758.6,1758.5,5.8027]
[1745860281437,1.13692,1758.6,1758.5,9.0105]
[1745860282341,1.13681,1758.7,1758.6,1.13681]
[1745860282636,1.13687,1758.6,1758.5,9.01049]
[1745860282832,1.13685,1758.7,1758.6,1.13684]
[1745860283835,1.13687,1758.6,1758.5,7.8736]
[1745860284134,1.13687,1758.6,1758.5,4.0716]
[1745860284339,1.13693,1758.5,1758.4,4.078]
[1745860285141,1.13693,1758.5,1758.4,7.88]
[1745860285531,4.33838801,1758.5,1758.4,7.88]
[1745860286140,4.33838801,1758.5,1758.4,4.078]
[1745860286739,1.13699,1758.4,1758.3,0.8547]
[1745860287133,2.86089,1758.4,1758.3,0.8547]
[1745860287336,1.13712,1758.2,1758.1,4.9078]
[1745860287636,1.13712,1758.2,1758.1,4.078]
[1745860288140,2.86102,1758.2,1758.1,4.078]
[1745860288835,2.95770923,1758.2,1758.1,4.078]
[1745860289033,1.13725,1758.0,1757.9,0.8241]
[1745860289233,1.13732,1757.9,1757.8,4.079]
[1745860289435,2.86122,1757.9,1757.8,4.079]
[1745860290143,1.13732,1757.9,1757.8,9.01838]
[1745860290343,1.13732,1757.9,1757.8,7.881]
[1745860291744,1.6046,1758.1,1757.9,1.13731]
[1745860291929,1.6046,1758.1,1757.8,7.881]
[1745860291930,1.6046,1758.1,1757.8,9.01834]
[1745860292133,1.13732,1757.9,1757.8,9.01834]
[1745860292334,1.13732,1757.9,1757.8,9.88114]
[1745860292536,1.13732,1757.9,1757.8,8.7438]
[1745860292739,1.13732,1757.9,1757.8,9.88118]
[1745860292941,1.13728,1758.0,1757.9,1.13728]
[1745860293142,1.13731,1758.0,1757.9,1.13731]
[1745860293345,13.79937453,1758.2,1757.8,8.7438]
[1745860293542,1.13729,1758.0,1757.9,1.1373]
[1745860294044,4.34496,1758.2,1758.1,1.13719]
[1745860294345,1.1371,1758.3,1758.2,1.13712]
[1745860294536,1.13713,1758.2,1758.1,1.13714]
[1745860294742,1.1371,1758.3,1758.2,1.1371]
[1745860294943,1.1371,1758.3,1758.2,1.9443]
[1745860295141,1.13705,1758.4,1758.3,1.13704]
[1745860295641,6.05017,1758.5,1758.2,5.74627]
[1745860295642,1.13706,1758.3,1758.2,5.74627]
[1745860295843,6.05017,1758.5,1758.3,1.13704]
[1745860295844,1.13705,1758.4,1758.3,1.13704]
[1745860296041,1.13706,1758.3,1758.2,5.74627]
[1745860296345,6.05017,1758.5,1758.2,1.94427]
[1745860296544,1.13706,1758.3,1758.2,1.94432]
[1745860296737,1.13706,1758.3,1758.2,0.8072]
[1745860296937,1.13706,1758.3,1758.2,2.4143]
[1745860297244,1.13706,1758.3,1758.2,6.2163]
[1745860297446,1.13706,1758.3,1758.2,7.35342]
[1745860297646,1.13706,1758.3,1758.2,6.2163]
[1745860298034,1.13706,1758.3,1758.2,7.35342]
[1745860298739,1.13706,1758.3,1758.2,6.2163]
[1745860299451,1.13706,1758.3,1758.2,7.35342]
[1745860299640,1.13702,1758.4,1758.3,1.13701]
[1745860299945,6.05014,1758.5,1758.2,3.802]
[1745860300136,5.97846,1758.3,1758.2,2.92824889]
[1745860300337,6.0751224,1758.3,1758.2,2.92824889]
[1745860301934,5.97846,1758.3,1758.2,2.92824889]
[1745860302140,1.13719,1758.1,1758.0,1.7675]
[1745860303142,1.13719,1758.1,1758.0,5.5695]
[1745860307348,4.34499,1758.1,1758.0,5.5695]
[1745860307654,4.34499,1758.1,1758.0,3.802]
[1745860312956,4.34499,1758.1,1758.0,4.6783]
[1745860313153,2.84277,1758.3,1758.0,9.8915]
[1745860313358,1.13712,1758.2,1758.1,1.7027]
[1745860313559,1.13712,1758.2,1758.1,2.83989]
[1745860313956,1.13711,1758.3,1758.2,1.13709]
[1745860314258,6.05018,1758.5,1758.2,1.13709]
[1745860314259,3.2078,1758.5,1758.3,1.13702]
[1745860314558,4.34473,1758.5,1758.4,1.671]
[1745860314756,1.13693,1758.5,1758.4,2.5473]
[1745860315156,1.13693,1758.5,1758.4,6.3493]
[1745860316560,1.13693,1758.5,1758.4,7.48629]
[1745860316761,1.13693,1758.5,1758.4,6.3493]
[1745860317062,1.13692,1758.6,1758.5,1.13691]
[1745860317357,1.13692,1758.6,1758.5,1.6212]
[1745860318150,1.13692,1758.6,1758.5,5.4232]
[1745860318360,1.13692,1758.6,1758.5,6.56013]
[1745860318961,1.13692,1758.6,1758.5,5.4232]
[1745860319262,1.13692,1758.6,1758.5,6.56013]
[1745860319660,1.13692,1758.6,1758.5,5.4232]
[1745860320762,1.95472,1758.6,1758.5,5.4232]
[1745860321264,1.95472,1758.6,1758.5,1.6212]
[1745860321559,5.16252,1758.6,1758.5,1.6212]
[1745860328965,4.34472,1758.6,1758.5,1.6212]
[1745860329267,4.34472,1758.6,1758.5,5.4232]
[1745860329468,5.22272,1758.6,1758.5,5.4232]
[1745860330170,5.22272,1758.6,1758.5,1.6212]
[1745860330462,4.0858,1758.6,1758.3,4.076]
[1745860330668,1.13699,1758.4,1758.3,4.076]
[1745860331167,1.13699,1758.4,1758.3,9.5353]
[1745860332062,6.11679,1758.4,1758.3,7.878]
[1745860332271,6.95869,1758.4,1758.3,4.076]
[1745860332466,2.84266,1758.3,1758.0,5.7691]
[1745860332667,1.13719,1758.1,1758.0,5.7691]
[1745860333173,1.13719,1758.1,1758.0,9.5711]
[1745860334272,1.13718,1758.2,1758.1,1.13718]
[1745860334465,1.13718,1758.2,1758.1,2.5499]
[1745860335164,1.13718,1758.2,1758.1,3.68709]
[1745860335564,1.13711,1758.3,1758.2,1.13711]
[1745860335869,1.13711,1758.3,1758.2,3.66621]
[1745860336068,1.13711,1758.3,1758.2,7.46821]
[1745860336964,1.13705,1758.4,1758.3,1.13702]
[1745860337165,1.13705,1758.4,1758.3,6.90182]
[1745860338073,1.13705,1758.4,1758.3,10.70386]
[1745860338870,1.13705,1758.4,1758.3,15.70386]
[1745860339169,1.13705,1758.4,1758.3,9.5668]
[1745860339666,1.13751,1757.6,1757.5,7.82865963]
[1745860339970,4.34531,1757.6,1757.5,9.44685963]
[1745860340171,4.34531,1757.6,1757.5,4.83617963]
[1745860340370,4.44203679,1757.6,1757.5,4.83617963]
[1745860340572,4.44203407,1757.6,1757.5,4.83617963]
[1745860340773,4.34531,1757.6,1757.5,4.83617963]
[1745860340976,4.44203556,1757.6,1757.5,4.83617963]
[1745860341274,4.34531,1757.6,1757.5,4.83617963]
[1745860341467,6.18053437,1757.6,1757.5,4.83617963]
[1745860341666,1.13751,1757.6,1757.5,4.83617963]
[1745860341870,1.13751,1757.6,1757.5,6.49477963]
[1745860342068,1.13751,1757.6,1757.5,10.29677963]
[1745860342670,1.13751,1757.6,1757.5,5.74496395]
[1745860342875,1.13743,1757.8,1757.5,8.95276395]
[1745860343173,1.13745,1757.7,1757.6,0.8523]
[1745860343778,1.13741,1757.8,1757.6,1.13666395]
[1745860343965,1.13741,1757.8,1757.7,5.7296]
[1745860345172,3.2078,1757.9,1757.7,9.81596395]
[1745860345364,1.7385,1758.0,1757.7,9.81596395]
[1745860345569,1.13738,1757.8,1757.7,9.81596395]
[1745860345767,1.13738,1757.8,1757.7,4.08636395]
[1745860346775,6.05078,1758.1,1757.7,4.08636395]
[1745860346976,1.13736,1757.9,1757.8,7.4467]
[1745860348277,1.13736,1757.9,1757.8,11.2487]
[1745860348775,1.13736,1757.9,1757.8,11.53306395]
[1745860348966,1.13736,1757.9,1757.8,10.78306395]
[1745860349767,1.13736,1757.9,1757.8,8.15836395]
[1745860351874,4.34516,1757.9,1757.8,4.08636395]
[1745860353779,1.13736,1757.9,1757.8,8.15836395]
[1745860354876,1.13736,1757.9,1757.8,9.29574395]
[1745860355278,1.13736,1757.9,1757.8,8.15836395]
[1745860357073,1.13736,1757.9,1757.8,4.08636395]
[1745860357281,4.34516,1757.9,1757.8,4.08636395]
[1745860358278,1.13736,1757.9,1757.8,4.08636395]
[1745860359879,4.34516,1757.9,1757.8,4.08636395]
[1745860360079,5.22646,1757.9,1757.8,4.08636395]
[1745860360573,6.10766,1757.9,1757.8,4.08636395]
[1745860363081,5.22646,1757.9,1757.8,2.83412395]
[1745860363281,6.07596,1757.9,1757.8,1.49171395]
[1745860364284,6.07596,1757.9,1757.8,0.28436395]
[1745860364878,1.13738,1757.8,1757.7,0.28436395]
[1745860365077,4.0891,1757.9,1757.6,0.28436395]
[1745860365078,1.13745,1757.7,1757.6,0.28436395]
[1745860365278,1.13745,1757.7,1757.6,4.35636395]
[1745860366078,1.13745,1757.7,1757.6,5.49387395]
[1745860367484,1.13745,1757.7,1757.6,4.35636395]
[1745860369880,1.13745,1757.7,1757.6,10.49387395]
[1745860370086,1.13743,1757.8,1757.7,1.13742]
[1745860370384,1.13743,1757.8,1757.7,4.34522]
[1745860371183,1.13743,1757.8,1757.7,8.14722]
[1745860371484,1.13743,1757.8,1757.7,7.0098]
[1745860371688,1.13743,1757.8,1757.7,3.802]
[1745860371883,1.13743,1757.8,1757.7,4.93945]
[1745860373982,1.13738,1757.9,1757.8,1.13736]
[1745860374175,1.13738,1757.9,1757.8,6.05586]
[1745860374686,1.13738,1757.9,1757.8,4.9185]
[1745860375183,1.13738,1757.9,1757.8,9.00486395]
[1745860375990,4.34518,1757.9,1757.8,9.00486395]
[1745860376490,6.05078,1757.9,1757.8,8.15436395]
[1745860377590,6.05078,1757.9,1757.8,4.08636395]
[1745860377890,6.89318,1757.9,1757.8,4.08636395]
[1745860378891,6.98989024,1757.9,1757.8,4.08636395]
[1745860379190,6.98988632,1757.9,1757.8,0.28436395]
[1745860380685,1.13738,1757.8,1757.7,0.28436395]
[1745860380989,1.13738,1757.8,1757.7,1.16826395]
[1745860381189,1.13738,1757.8,1757.7,4.97026395]
[1745860382493,2.89068,1757.8,1757.7,4.97026395]
[1745860382888,2.89068,1757.8,1757.7,4.08636395]
[1745860385094,2.98739802,1757.8,1757.7,4.08636395]
[1745860385392,2.98739826,1757.8,1757.7,4.08636395]
[1745860385592,2.89068,1757.8,1757.7,4.08636395]
[1745860386595,2.98739215,1757.8,1757.7,4.08636395]
[1745860386987,12.04136668,1757.8,1757.7,0.63546]
[1745860387197,1.13745,1757.7,1757.6,3.95e-06]
[1745860387496,6.83485,1757.7,1757.6,3.95e-06]
[1745860388291,1.13758,1757.5,1757.4,0.8492]
[1745860389089,1.13758,1757.5,1757.4,4.6512]
[1745860389791,1.13758,1757.5,1757.4,3.802]
[1745860392096,2.79558,1757.5,1757.4,3.802]
[1745860394001,1.13758,1757.5,1757.4,3.802]
[1745860396404,1.13758,1757.5,1757.4,7.0098]
[1745860397399,1.13758,1757.5,1757.4,8.7759]
[1745860398203,1.13758,1757.5,1757.4,14.91354]
[1745860400203,1.13758,1757.5,1757.4,9.91354]
[1745860401904,1.13749,1757.7,1757.5,1.13757]
[1745860402098,1.13749,1757.7,1757.6,6.5606]
[1745860403007,1.13751,1757.6,1757.5,2.26097]
[1745860403194,2.84422,1757.4,1756.9,7.2728]
[1745860403506,1.13786,1757.1,1757.0,1.7412]
[1745860404005,1.13786,1757.1,1757.0,2.8791]
[1745860404211,1.13786,1757.1,1757.0,6.6811]
[1745860404404,2.84407,1757.5,1757.2,1.13776]
[1745860404708,1.13768,1757.4,1757.3,6.6715]
[1745860405094,1.13768,1757.4,1757.3,10.4735]
[1745860406303,1.13768,1757.4,1757.3,11.61121]
[1745860406606,1.13768,1757.4,1757.3,10.4735]
[1745860406807,1.13768,1757.4,1757.3,11.61121]
[1745860411505,1.13768,1757.4,1757.3,10.4735]
[1745860412704,4.34548,1757.4,1757.3,10.4735]
[1745860413205,1.13768,1757.4,1757.3,10.4735]
[1745860413606,1.13768,1757.4,1757.3,11.61121]
[1745860414107,1.13768,1757.4,1757.3,10.4735]
[1745860414606,1.13768,1757.4,1757.3,11.61121]
[1745860415115,1.13768,1757.4,1757.3,10.4735]
[1745860415414,1.13768,1757.4,1757.3,11.61121]
[1745860416318,1.13768,1757.4,1757.3,10.4735]
[1745860416514,1.13768,1757.4,1757.3,11.61121]
[1745860420909,1.13768,1757.4,1757.3,7.867]
[1745860421205,1.13768,1757.4,1757.3,11.52511]
[1745860421516,1.13768,1757.4,1757.3,10.3874]
[1745860422018,2.82288,1757.4,1757.3,10.3874]
[1745860422615,6.03068,1757.4,1757.3,7.867]
[1745860422810,6.96471154,1757.4,1757.3,3.802]
[1745860423417,6.86798,1757.4,1757.3,3.802]
[1745860423624,6.96471521,1757.4,1757.3,3.802]
[1745860423820,6.86798,1757.4,1757.3,3.802]
[1745860425514,6.96471948,1757.4,1757.3,3.802]
[1745860425815,6.86798,1757.4,1757.3,3.802]
[1745860426608,6.86798,1757.4,1757.3,2.21012]
[1745860426609,11.96471389,1757.4,1757.3,2.21012]
[1745860426814,12.32267787,1757.4,1757.3,2.21012]
[1745860427111,1.13784,1757.1,1757.0,4.065]
[1745860427314,4.34564,1757.1,1757.0,4.065]
[1745860429320,4.34564,1757.1,1757.0,7.867]
[1745860430119,4.34564,1757.1,1757.0,4.065]
[1745860432123,6.10574,1757.1,1757.0,7.867]
[1745860433023,1.13829,1756.4,1756.3,63.849]
[1745860433221,1.13835,1756.3,1756.2,7.3735]
[1745860434226,1.13835,1756.3,1756.2,11.1755]
[1745860434424,1.13835,1756.3,1756.2,12.31392]
[1745860434826,1.13835,1756.3,1756.2,11.1755]
[1745860435523,1.13835,1756.3,1756.2,10.3562]
[1745860435823,1.13835,1756.3,1756.2,3.802]
[1745860436223,2.73715,1756.3,1756.2,3.802]
[1745860436819,2.73715,1756.3,1756.2,4.6467]
[1745860437021,1.13835,1756.3,1756.2,4.6467]
[1745860437228,1.13835,1756.3,1756.2,5.508]
[1745860437425,1.13835,1756.3,1756.2,7.1941]
[1745860438325,1.13835,1756.3,1756.2,1.00407]
[1745860438326,6.13835,1756.3,1756.2,1.00407]
[1745860438637,6.13835,1756.3,1755.5,3.2078]
[1745860438638,1.13881,1755.6,1755.5,3.2078]
[1745860439423,1.13877,1755.7,1755.6,1.1388]
[1745860439618,1.13881,1755.7,1755.5,7.0098]
[1745860439819,1.13881,1755.6,1755.5,7.0098]
[1745860440019,1.13881,1755.6,1755.5,3.802]
[1745860440724,6.85924,1755.9,1755.5,3.802]
[1745860440918,1.13881,1755.6,1755.5,4.94086]
[1745860441320,1.13876,1755.7,1755.6,1.13879]
[1745860441521,7.72904453,1756.1,1755.6,4.0823]
[1745860441522,2.8464,1756.0,1755.6,4.0823]
[1745860441823,1.13873,1755.8,1755.7,1.94034]
[1745860442017,1.13873,1755.8,1755.7,0.8016]
[1745860442218,2.8457,1756.5,1755.7,11.3067]
[1745860442429,1.1384,1756.3,1756.2,1.13839]
[1745860442633,1.13842,1756.2,1756.1,6.02233]
[1745860443225,1.13842,1756.2,1756.1,1.6761]
[1745860443730,1.13842,1756.2,1756.1,2.81458]
[1745860443917,1.1384,1756.3,1756.2,1.13838]
[1745860444127,1.1384,1756.3,1756.2,8.14818]
[1745860444319,1.1384,1756.3,1756.2,7.0098]
[1745860444629,1.1384,1756.3,1756.2,8.14822]
[1745860444820,4.8345,1756.5,1756.2,7.0098]
[1745860445025,1.13835,1756.3,1756.2,7.0098]
[1745860445321,1.13835,1756.3,1756.2,3.802]
[1745860446031,1.13835,1756.3,1756.2,4.94042]
[1745860448221,1.1383,1756.4,1756.3,1.13829]
[1745860448426,1.13834,1756.4,1756.3,1.13833]
[1745860448629,1.13835,1756.3,1756.2,4.94037]
[1745860449121,1.13834,1756.4,1756.3,1.13833]
[1745860449528,1.13835,1756.3,1756.2,4.94038]